{"text_format":"3","workbook":"xlsx","n_sheets":3,"sheets":["Log Perbatuan","Data Log","pengiraan"],"not_rendered":{"charts":1,"defined_names":17},"read":"whole","date_system":"1900"}

{"sheet":"Log Perbatuan","index":0,"n_rows":29,"n_cols":5,"rows_kept":29,"merged":[[0,1,1,4]]}
[null,"LOG PERBATUAN"]
{"$rows_empty":9}
[null,null,"PERBATUAN BOLEH ",null,"JUMLAH"]
[null,null,"BAYAR BALIK",null,"BAYAR BALIK"]
[]
[]
[]
[]
[null,null,"2012-05-01",null,"2012-05-10"]
[]
[null,null,"TEMPOH",null,"TEMPOH"]
[null,null,"MULA",null,"TAMAT"]
[]
[]
[]
[]
[]
[null,null,54,null,{"v":9800,"d":"9,800"}]
[]
[null,null,"BAYAR BALIK",null,"MINYAK SEBELUMNYA"]
[null,null,"¢/BATU",null,"ODOMETER"]

{"sheet":"Data Log","index":1,"n_rows":19,"n_cols":15,"rows_kept":19,"merged":[[0,1,1,4]]}
[null,"LOG PERBATUAN"]
[{"$nulls":14}," "]
[]
[]
[null,"TARIKH","AKTIVITI","ODOM. 1","LOKASI","ODOM. 2","DESTINASI","BAYAR BALIK","GELEN","KOS","BATU","MPG","¢/BATU","NOTA"]
[null,"2012-05-01","Perjalanan",{"v":10123,"d":"10,123"},"Chevron - Main St",{"v":10130,"d":"10,130"},null,null,15.56,{"v":64.11,"d":"RM64.11"},{"$f":"miles","v":7},{"$f":"IF(OR(LEN(data[[#This Row],[ODOM. 2]]),data[[#This Row],[ODOM. 1]]=\"\"),\"\",IFERROR(data[[#This Row],[BATU]]/data[[#This Row],[GELEN]],\"\"))","v":""},{"$f":"IF(data[[#This Row],[MPG]]=\"\",\"\",100*data[[#This Row],[KOS]]/data[[#This Row],[BATU]])","v":""}]
[null,"2012-05-01","Perjalanan",{"v":10130,"d":"10,130"},"Pejabat",{"v":10200,"d":"10,200"},"Jalan Cherry","Ya",null,"",{"$f":"miles","v":70},{"$f":"IF(OR(LEN(data[[#This Row],[ODOM. 2]]),data[[#This Row],[ODOM. 1]]=\"\"),\"\",IFERROR(data[[#This Row],[BATU]]/data[[#This Row],[GELEN]],\"\"))","v":""},{"$f":"IF(data[[#This Row],[MPG]]=\"\",\"\",100*data[[#This Row],[KOS]]/data[[#This Row],[BATU]])","v":""}]
[null,"2012-05-01","Perjalanan",{"v":10200,"d":"10,200"},"Smithfields",{"v":10285,"d":"10,285"},"Pejabat","Ya",null,"",{"$f":"miles","v":85},{"$f":"IF(OR(LEN(data[[#This Row],[ODOM. 2]]),data[[#This Row],[ODOM. 1]]=\"\"),\"\",IFERROR(data[[#This Row],[BATU]]/data[[#This Row],[GELEN]],\"\"))","v":""},{"$f":"IF(data[[#This Row],[MPG]]=\"\",\"\",100*data[[#This Row],[KOS]]/data[[#This Row],[BATU]])","v":""}]
[null,"2012-05-02","Perjalanan",{"v":10285,"d":"10,285"},"Pejabat",{"v":10450,"d":"10,450"},"Colo Vineyard","Ya",null,"",{"$f":"miles","v":165},{"$f":"IF(OR(LEN(data[[#This Row],[ODOM. 2]]),data[[#This Row],[ODOM. 1]]=\"\"),\"\",IFERROR(data[[#This Row],[BATU]]/data[[#This Row],[GELEN]],\"\"))","v":""},{"$f":"IF(data[[#This Row],[MPG]]=\"\",\"\",100*data[[#This Row],[KOS]]/data[[#This Row],[BATU]])","v":""}]
[null,"2012-05-02","Minyak",{"v":10450,"d":"10,450"},"Shell",{"$nulls":3},{"v":11.2,"d":"11.20"},{"v":55.42,"d":"RM55.42"},{"$f":"miles","v":650},{"$f":"IF(OR(LEN(data[[#This Row],[ODOM. 2]]),data[[#This Row],[ODOM. 1]]=\"\"),\"\",IFERROR(data[[#This Row],[BATU]]/data[[#This Row],[GELEN]],\"\"))","v":{"v":58.03571428571429,"d":"58.0"}},{"$f":"IF(data[[#This Row],[MPG]]=\"\",\"\",100*data[[#This Row],[KOS]]/data[[#This Row],[BATU]])","v":{"v":8.526153846153846,"d":"8.5"}}]
[null,"2012-05-02","Perjalanan",{"v":10500,"d":"10,500"},"Colo Vineyard",{"v":10518,"d":"10,518"},"Pejabat","Ya",null,"",{"$f":"miles","v":18},{"$f":"IF(OR(LEN(data[[#This Row],[ODOM. 2]]),data[[#This Row],[ODOM. 1]]=\"\"),\"\",IFERROR(data[[#This Row],[BATU]]/data[[#This Row],[GELEN]],\"\"))","v":""},{"$f":"IF(data[[#This Row],[MPG]]=\"\",\"\",100*data[[#This Row],[KOS]]/data[[#This Row],[BATU]])","v":""}]
[null,"2012-05-03","Perjalanan",{"v":10518,"d":"10,518"},"Pejabat",{"v":10745,"d":"10,745"},"Pejabat","Ya",null,"",{"$f":"miles","v":227},{"$f":"IF(OR(LEN(data[[#This Row],[ODOM. 2]]),data[[#This Row],[ODOM. 1]]=\"\"),\"\",IFERROR(data[[#This Row],[BATU]]/data[[#This Row],[GELEN]],\"\"))","v":""},{"$f":"IF(data[[#This Row],[MPG]]=\"\",\"\",100*data[[#This Row],[KOS]]/data[[#This Row],[BATU]])","v":""}]
[null,"2012-05-04","Minyak",{"v":10745,"d":"10,745"},"Chevron - Main St",{"$nulls":3},{"v":16.6,"d":"16.60"},{"v":69.24,"d":"RM69.24"},{"$f":"miles","v":295},{"$f":"IF(OR(LEN(data[[#This Row],[ODOM. 2]]),data[[#This Row],[ODOM. 1]]=\"\"),\"\",IFERROR(data[[#This Row],[BATU]]/data[[#This Row],[GELEN]],\"\"))","v":{"v":17.771084337349397,"d":"17.8"}},{"$f":"IF(data[[#This Row],[MPG]]=\"\",\"\",100*data[[#This Row],[KOS]]/data[[#This Row],[BATU]])","v":{"v":23.471186440677965,"d":"23.5"}}]
[null,"2012-05-04","Perjalanan",{"v":10745,"d":"10,745"},"Pejabat",{"v":10800,"d":"10,800"},"Porterville","Ya",null,"",{"$f":"miles","v":55},{"$f":"IF(OR(LEN(data[[#This Row],[ODOM. 2]]),data[[#This Row],[ODOM. 1]]=\"\"),\"\",IFERROR(data[[#This Row],[BATU]]/data[[#This Row],[GELEN]],\"\"))","v":""},{"$f":"IF(data[[#This Row],[MPG]]=\"\",\"\",100*data[[#This Row],[KOS]]/data[[#This Row],[BATU]])","v":""}]
[null,"2012-05-04","Perjalanan",{"v":10800,"d":"10,800"},"Porterville",{"v":10875,"d":"10,875"},"Pejabat","Ya",null,"",{"$f":"miles","v":75},{"$f":"IF(OR(LEN(data[[#This Row],[ODOM. 2]]),data[[#This Row],[ODOM. 1]]=\"\"),\"\",IFERROR(data[[#This Row],[BATU]]/data[[#This Row],[GELEN]],\"\"))","v":""},{"$f":"IF(data[[#This Row],[MPG]]=\"\",\"\",100*data[[#This Row],[KOS]]/data[[#This Row],[BATU]])","v":""}]
[null,"2012-05-07","Perjalanan",{"v":10875,"d":"10,875"},"Pejabat",{"v":10921,"d":"10,921"},"Jalan Cherry","Ya",null,"",{"$f":"miles","v":46},{"$f":"IF(OR(LEN(data[[#This Row],[ODOM. 2]]),data[[#This Row],[ODOM. 1]]=\"\"),\"\",IFERROR(data[[#This Row],[BATU]]/data[[#This Row],[GELEN]],\"\"))","v":""},{"$f":"IF(data[[#This Row],[MPG]]=\"\",\"\",100*data[[#This Row],[KOS]]/data[[#This Row],[BATU]])","v":""}]
[null,"2012-05-07","Perjalanan",{"v":10921,"d":"10,921"},"Smithfields",{"v":10969,"d":"10,969"},"Pejabat","Ya",null,"",{"$f":"miles","v":48},{"$f":"IF(OR(LEN(data[[#This Row],[ODOM. 2]]),data[[#This Row],[ODOM. 1]]=\"\"),\"\",IFERROR(data[[#This Row],[BATU]]/data[[#This Row],[GELEN]],\"\"))","v":""},{"$f":"IF(data[[#This Row],[MPG]]=\"\",\"\",100*data[[#This Row],[KOS]]/data[[#This Row],[BATU]])","v":""}]
[null,"2012-05-09","Perjalanan",{"v":10969,"d":"10,969"},"Pejabat",{"v":11000,"d":"11,000"},"Riverside","Ya",null,"",{"$f":"miles","v":31},{"$f":"IF(OR(LEN(data[[#This Row],[ODOM. 2]]),data[[#This Row],[ODOM. 1]]=\"\"),\"\",IFERROR(data[[#This Row],[BATU]]/data[[#This Row],[GELEN]],\"\"))","v":""},{"$f":"IF(data[[#This Row],[MPG]]=\"\",\"\",100*data[[#This Row],[KOS]]/data[[#This Row],[BATU]])","v":""}]
[null,"2012-05-09","Perjalanan",{"v":11000,"d":"11,000"},"Riverside",{"v":11100,"d":"11,100"},"Rumah","Tidak",null,"",{"$f":"miles","v":100},{"$f":"IF(OR(LEN(data[[#This Row],[ODOM. 2]]),data[[#This Row],[ODOM. 1]]=\"\"),\"\",IFERROR(data[[#This Row],[BATU]]/data[[#This Row],[GELEN]],\"\"))","v":""},{"$f":"IF(data[[#This Row],[MPG]]=\"\",\"\",100*data[[#This Row],[KOS]]/data[[#This Row],[BATU]])","v":""}]

{"sheet":"pengiraan","index":2,"n_rows":69,"n_cols":13,"rows_kept":69,"hidden":true}
["*** Helaian ini sepatutnya kekal tersembunyi ***"]
[]
[]
[]
[]
[{"$nulls":8},{"$f":"OFFSET(I9,,secondAxis=\"kos minyak\")","v":"¢/BATU"}]
[{"$nulls":12},2]
[{"$nulls":7},"Perjalanan","Minyak","Minyak",null,"Second Axis:  ",{"$f":"REPT(\"MPG\",M7=1)&REPT(\"Kos Minyak\",M7=2)","v":"Kos Minyak"}]
[{"$nulls":7},"Batu Dipandu","MPG","¢/BATU"]
[null,null,"Batu Bayar Balik:  ",{"$f":"SUMIFS(data[BATU],data[BAYAR BALIK],\"ya\",data[TARIKH],\">=\"&periodStart,data[TARIKH],\"<=\"&periodEnd)","v":820},null,1,{"$f":"periodStart","v":"2012-05-01"},{"$f":"SUMIFS(data[BATU],data[TARIKH],G10,data[AKTIVITI],$H$8)","v":162},{"$f":"IFERROR(AVERAGEIFS(data[MPG],data[TARIKH],G10,data[AKTIVITI],$I$8),NA())","v":{"$error":"#N/A"}},{"$f":"IFERROR(AVERAGEIFS(data[¢/BATU],data[TARIKH],G10,data[AKTIVITI],$J$8),NA())","v":{"$error":"#N/A"}}]
[null,null,"Jumlah Bayar Balik:  ",{"$f":"D10*ReimbursementPerMile/100","v":{"v":442.8,"d":"RM442.80"}},null,2,{"$f":"G10+1","v":"2012-05-02"},{"$f":"SUMIFS(data[BATU],data[TARIKH],G11,data[AKTIVITI],$H$8)","v":183},{"$f":"IFERROR(AVERAGEIFS(data[MPG],data[TARIKH],G11,data[AKTIVITI],$I$8),NA())","v":{"v":58.03571428571429,"d":"58.0"}},{"$f":"IFERROR(AVERAGEIFS(data[¢/BATU],data[TARIKH],G11,data[AKTIVITI],$J$8),NA())","v":{"v":8.526153846153846,"d":"8.5"}}]
[{"$nulls":5},3,"2012-05-03",{"$f":"SUMIFS(data[BATU],data[TARIKH],G12,data[AKTIVITI],$H$8)","v":227},{"$f":"IFERROR(AVERAGEIFS(data[MPG],data[TARIKH],G12,data[AKTIVITI],$I$8),NA())","v":{"$error":"#N/A"}},{"$f":"IFERROR(AVERAGEIFS(data[¢/BATU],data[TARIKH],G12,data[AKTIVITI],$J$8),NA())","v":{"$error":"#N/A"}}]
[{"$nulls":5},4,"2012-05-04",{"$f":"SUMIFS(data[BATU],data[TARIKH],G13,data[AKTIVITI],$H$8)","v":130},{"$f":"IFERROR(AVERAGEIFS(data[MPG],data[TARIKH],G13,data[AKTIVITI],$I$8),NA())","v":{"v":17.771084337349397,"d":"17.8"}},{"$f":"IFERROR(AVERAGEIFS(data[¢/BATU],data[TARIKH],G13,data[AKTIVITI],$J$8),NA())","v":{"v":23.471186440677965,"d":"23.5"}}]
[{"$nulls":5},5,"2012-05-05",{"$f":"SUMIFS(data[BATU],data[TARIKH],G14,data[AKTIVITI],$H$8)","v":0},{"$f":"IFERROR(AVERAGEIFS(data[MPG],data[TARIKH],G14,data[AKTIVITI],$I$8),NA())","v":{"$error":"#N/A"}},{"$f":"IFERROR(AVERAGEIFS(data[¢/BATU],data[TARIKH],G14,data[AKTIVITI],$J$8),NA())","v":{"$error":"#N/A"}}]
[{"$nulls":5},6,"2012-05-06",{"$f":"SUMIFS(data[BATU],data[TARIKH],G15,data[AKTIVITI],$H$8)","v":0},{"$f":"IFERROR(AVERAGEIFS(data[MPG],data[TARIKH],G15,data[AKTIVITI],$I$8),NA())","v":{"$error":"#N/A"}},{"$f":"IFERROR(AVERAGEIFS(data[¢/BATU],data[TARIKH],G15,data[AKTIVITI],$J$8),NA())","v":{"$error":"#N/A"}}]
[{"$nulls":5},7,"2012-05-07",{"$f":"SUMIFS(data[BATU],data[TARIKH],G16,data[AKTIVITI],$H$8)","v":94},{"$f":"IFERROR(AVERAGEIFS(data[MPG],data[TARIKH],G16,data[AKTIVITI],$I$8),NA())","v":{"$error":"#N/A"}},{"$f":"IFERROR(AVERAGEIFS(data[¢/BATU],data[TARIKH],G16,data[AKTIVITI],$J$8),NA())","v":{"$error":"#N/A"}}]
[{"$nulls":5},8,"2012-05-08",{"$f":"SUMIFS(data[BATU],data[TARIKH],G17,data[AKTIVITI],$H$8)","v":0},{"$f":"IFERROR(AVERAGEIFS(data[MPG],data[TARIKH],G17,data[AKTIVITI],$I$8),NA())","v":{"$error":"#N/A"}},{"$f":"IFERROR(AVERAGEIFS(data[¢/BATU],data[TARIKH],G17,data[AKTIVITI],$J$8),NA())","v":{"$error":"#N/A"}}]
[{"$nulls":5},9,"2012-05-09",{"$f":"SUMIFS(data[BATU],data[TARIKH],G18,data[AKTIVITI],$H$8)","v":131},{"$f":"IFERROR(AVERAGEIFS(data[MPG],data[TARIKH],G18,data[AKTIVITI],$I$8),NA())","v":{"$error":"#N/A"}},{"$f":"IFERROR(AVERAGEIFS(data[¢/BATU],data[TARIKH],G18,data[AKTIVITI],$J$8),NA())","v":{"$error":"#N/A"}}]
[{"$nulls":5},10,"2012-05-10",{"$f":"SUMIFS(data[BATU],data[TARIKH],G19,data[AKTIVITI],$H$8)","v":0},{"$f":"IFERROR(AVERAGEIFS(data[MPG],data[TARIKH],G19,data[AKTIVITI],$I$8),NA())","v":{"$error":"#N/A"}},{"$f":"IFERROR(AVERAGEIFS(data[¢/BATU],data[TARIKH],G19,data[AKTIVITI],$J$8),NA())","v":{"$error":"#N/A"}}]
[{"$nulls":5},11,"2012-05-11",{"$f":"SUMIFS(data[BATU],data[TARIKH],G20,data[AKTIVITI],$H$8)","v":0},{"$f":"IFERROR(AVERAGEIFS(data[MPG],data[TARIKH],G20,data[AKTIVITI],$I$8),NA())","v":{"$error":"#N/A"}},{"$f":"IFERROR(AVERAGEIFS(data[¢/BATU],data[TARIKH],G20,data[AKTIVITI],$J$8),NA())","v":{"$error":"#N/A"}}]
[{"$nulls":5},12,"2012-05-12",{"$f":"SUMIFS(data[BATU],data[TARIKH],G21,data[AKTIVITI],$H$8)","v":0},{"$f":"IFERROR(AVERAGEIFS(data[MPG],data[TARIKH],G21,data[AKTIVITI],$I$8),NA())","v":{"$error":"#N/A"}},{"$f":"IFERROR(AVERAGEIFS(data[¢/BATU],data[TARIKH],G21,data[AKTIVITI],$J$8),NA())","v":{"$error":"#N/A"}}]
[{"$nulls":5},13,"2012-05-13",{"$f":"SUMIFS(data[BATU],data[TARIKH],G22,data[AKTIVITI],$H$8)","v":0},{"$f":"IFERROR(AVERAGEIFS(data[MPG],data[TARIKH],G22,data[AKTIVITI],$I$8),NA())","v":{"$error":"#N/A"}},{"$f":"IFERROR(AVERAGEIFS(data[¢/BATU],data[TARIKH],G22,data[AKTIVITI],$J$8),NA())","v":{"$error":"#N/A"}}]
[{"$nulls":5},14,"2012-05-14",{"$f":"SUMIFS(data[BATU],data[TARIKH],G23,data[AKTIVITI],$H$8)","v":0},{"$f":"IFERROR(AVERAGEIFS(data[MPG],data[TARIKH],G23,data[AKTIVITI],$I$8),NA())","v":{"$error":"#N/A"}},{"$f":"IFERROR(AVERAGEIFS(data[¢/BATU],data[TARIKH],G23,data[AKTIVITI],$J$8),NA())","v":{"$error":"#N/A"}}]
[{"$nulls":5},15,"2012-05-15",{"$f":"SUMIFS(data[BATU],data[TARIKH],G24,data[AKTIVITI],$H$8)","v":0},{"$f":"IFERROR(AVERAGEIFS(data[MPG],data[TARIKH],G24,data[AKTIVITI],$I$8),NA())","v":{"$error":"#N/A"}},{"$f":"IFERROR(AVERAGEIFS(data[¢/BATU],data[TARIKH],G24,data[AKTIVITI],$J$8),NA())","v":{"$error":"#N/A"}}]
[{"$nulls":5},16,"2012-05-16",{"$f":"SUMIFS(data[BATU],data[TARIKH],G25,data[AKTIVITI],$H$8)","v":0},{"$f":"IFERROR(AVERAGEIFS(data[MPG],data[TARIKH],G25,data[AKTIVITI],$I$8),NA())","v":{"$error":"#N/A"}},{"$f":"IFERROR(AVERAGEIFS(data[¢/BATU],data[TARIKH],G25,data[AKTIVITI],$J$8),NA())","v":{"$error":"#N/A"}}]
[{"$nulls":5},17,"2012-05-17",{"$f":"SUMIFS(data[BATU],data[TARIKH],G26,data[AKTIVITI],$H$8)","v":0},{"$f":"IFERROR(AVERAGEIFS(data[MPG],data[TARIKH],G26,data[AKTIVITI],$I$8),NA())","v":{"$error":"#N/A"}},{"$f":"IFERROR(AVERAGEIFS(data[¢/BATU],data[TARIKH],G26,data[AKTIVITI],$J$8),NA())","v":{"$error":"#N/A"}}]
[{"$nulls":5},18,"2012-05-18",{"$f":"SUMIFS(data[BATU],data[TARIKH],G27,data[AKTIVITI],$H$8)","v":0},{"$f":"IFERROR(AVERAGEIFS(data[MPG],data[TARIKH],G27,data[AKTIVITI],$I$8),NA())","v":{"$error":"#N/A"}},{"$f":"IFERROR(AVERAGEIFS(data[¢/BATU],data[TARIKH],G27,data[AKTIVITI],$J$8),NA())","v":{"$error":"#N/A"}}]
[{"$nulls":5},19,"2012-05-19",{"$f":"SUMIFS(data[BATU],data[TARIKH],G28,data[AKTIVITI],$H$8)","v":0},{"$f":"IFERROR(AVERAGEIFS(data[MPG],data[TARIKH],G28,data[AKTIVITI],$I$8),NA())","v":{"$error":"#N/A"}},{"$f":"IFERROR(AVERAGEIFS(data[¢/BATU],data[TARIKH],G28,data[AKTIVITI],$J$8),NA())","v":{"$error":"#N/A"}}]
[{"$nulls":5},20,"2012-05-20",{"$f":"SUMIFS(data[BATU],data[TARIKH],G29,data[AKTIVITI],$H$8)","v":0},{"$f":"IFERROR(AVERAGEIFS(data[MPG],data[TARIKH],G29,data[AKTIVITI],$I$8),NA())","v":{"$error":"#N/A"}},{"$f":"IFERROR(AVERAGEIFS(data[¢/BATU],data[TARIKH],G29,data[AKTIVITI],$J$8),NA())","v":{"$error":"#N/A"}}]
[{"$nulls":5},21,"2012-05-21",{"$f":"SUMIFS(data[BATU],data[TARIKH],G30,data[AKTIVITI],$H$8)","v":0},{"$f":"IFERROR(AVERAGEIFS(data[MPG],data[TARIKH],G30,data[AKTIVITI],$I$8),NA())","v":{"$error":"#N/A"}},{"$f":"IFERROR(AVERAGEIFS(data[¢/BATU],data[TARIKH],G30,data[AKTIVITI],$J$8),NA())","v":{"$error":"#N/A"}}]
[{"$nulls":5},22,"2012-05-22",{"$f":"SUMIFS(data[BATU],data[TARIKH],G31,data[AKTIVITI],$H$8)","v":0},{"$f":"IFERROR(AVERAGEIFS(data[MPG],data[TARIKH],G31,data[AKTIVITI],$I$8),NA())","v":{"$error":"#N/A"}},{"$f":"IFERROR(AVERAGEIFS(data[¢/BATU],data[TARIKH],G31,data[AKTIVITI],$J$8),NA())","v":{"$error":"#N/A"}}]
[{"$nulls":5},23,"2012-05-23",{"$f":"SUMIFS(data[BATU],data[TARIKH],G32,data[AKTIVITI],$H$8)","v":0},{"$f":"IFERROR(AVERAGEIFS(data[MPG],data[TARIKH],G32,data[AKTIVITI],$I$8),NA())","v":{"$error":"#N/A"}},{"$f":"IFERROR(AVERAGEIFS(data[¢/BATU],data[TARIKH],G32,data[AKTIVITI],$J$8),NA())","v":{"$error":"#N/A"}}]
[{"$nulls":5},24,"2012-05-24",{"$f":"SUMIFS(data[BATU],data[TARIKH],G33,data[AKTIVITI],$H$8)","v":0},{"$f":"IFERROR(AVERAGEIFS(data[MPG],data[TARIKH],G33,data[AKTIVITI],$I$8),NA())","v":{"$error":"#N/A"}},{"$f":"IFERROR(AVERAGEIFS(data[¢/BATU],data[TARIKH],G33,data[AKTIVITI],$J$8),NA())","v":{"$error":"#N/A"}}]
[{"$nulls":5},25,"2012-05-25",{"$f":"SUMIFS(data[BATU],data[TARIKH],G34,data[AKTIVITI],$H$8)","v":0},{"$f":"IFERROR(AVERAGEIFS(data[MPG],data[TARIKH],G34,data[AKTIVITI],$I$8),NA())","v":{"$error":"#N/A"}},{"$f":"IFERROR(AVERAGEIFS(data[¢/BATU],data[TARIKH],G34,data[AKTIVITI],$J$8),NA())","v":{"$error":"#N/A"}}]
[{"$nulls":5},26,"2012-05-26",{"$f":"SUMIFS(data[BATU],data[TARIKH],G35,data[AKTIVITI],$H$8)","v":0},{"$f":"IFERROR(AVERAGEIFS(data[MPG],data[TARIKH],G35,data[AKTIVITI],$I$8),NA())","v":{"$error":"#N/A"}},{"$f":"IFERROR(AVERAGEIFS(data[¢/BATU],data[TARIKH],G35,data[AKTIVITI],$J$8),NA())","v":{"$error":"#N/A"}}]
[{"$nulls":5},27,"2012-05-27",{"$f":"SUMIFS(data[BATU],data[TARIKH],G36,data[AKTIVITI],$H$8)","v":0},{"$f":"IFERROR(AVERAGEIFS(data[MPG],data[TARIKH],G36,data[AKTIVITI],$I$8),NA())","v":{"$error":"#N/A"}},{"$f":"IFERROR(AVERAGEIFS(data[¢/BATU],data[TARIKH],G36,data[AKTIVITI],$J$8),NA())","v":{"$error":"#N/A"}}]
[{"$nulls":5},28,"2012-05-28",{"$f":"SUMIFS(data[BATU],data[TARIKH],G37,data[AKTIVITI],$H$8)","v":0},{"$f":"IFERROR(AVERAGEIFS(data[MPG],data[TARIKH],G37,data[AKTIVITI],$I$8),NA())","v":{"$error":"#N/A"}},{"$f":"IFERROR(AVERAGEIFS(data[¢/BATU],data[TARIKH],G37,data[AKTIVITI],$J$8),NA())","v":{"$error":"#N/A"}}]
[{"$nulls":5},29,"2012-05-29",{"$f":"SUMIFS(data[BATU],data[TARIKH],G38,data[AKTIVITI],$H$8)","v":0},{"$f":"IFERROR(AVERAGEIFS(data[MPG],data[TARIKH],G38,data[AKTIVITI],$I$8),NA())","v":{"$error":"#N/A"}},{"$f":"IFERROR(AVERAGEIFS(data[¢/BATU],data[TARIKH],G38,data[AKTIVITI],$J$8),NA())","v":{"$error":"#N/A"}}]
[{"$nulls":5},30,"2012-05-30",{"$f":"SUMIFS(data[BATU],data[TARIKH],G39,data[AKTIVITI],$H$8)","v":0},{"$f":"IFERROR(AVERAGEIFS(data[MPG],data[TARIKH],G39,data[AKTIVITI],$I$8),NA())","v":{"$error":"#N/A"}},{"$f":"IFERROR(AVERAGEIFS(data[¢/BATU],data[TARIKH],G39,data[AKTIVITI],$J$8),NA())","v":{"$error":"#N/A"}}]
[{"$nulls":5},31,"2012-05-31",{"$f":"SUMIFS(data[BATU],data[TARIKH],G40,data[AKTIVITI],$H$8)","v":0},{"$f":"IFERROR(AVERAGEIFS(data[MPG],data[TARIKH],G40,data[AKTIVITI],$I$8),NA())","v":{"$error":"#N/A"}},{"$f":"IFERROR(AVERAGEIFS(data[¢/BATU],data[TARIKH],G40,data[AKTIVITI],$J$8),NA())","v":{"$error":"#N/A"}}]
[{"$nulls":5},32,"2012-06-01",{"$f":"SUMIFS(data[BATU],data[TARIKH],G41,data[AKTIVITI],$H$8)","v":0},{"$f":"IFERROR(AVERAGEIFS(data[MPG],data[TARIKH],G41,data[AKTIVITI],$I$8),NA())","v":{"$error":"#N/A"}},{"$f":"IFERROR(AVERAGEIFS(data[¢/BATU],data[TARIKH],G41,data[AKTIVITI],$J$8),NA())","v":{"$error":"#N/A"}}]
[{"$nulls":5},33,"2012-06-02",{"$f":"SUMIFS(data[BATU],data[TARIKH],G42,data[AKTIVITI],$H$8)","v":0},{"$f":"IFERROR(AVERAGEIFS(data[MPG],data[TARIKH],G42,data[AKTIVITI],$I$8),NA())","v":{"$error":"#N/A"}},{"$f":"IFERROR(AVERAGEIFS(data[¢/BATU],data[TARIKH],G42,data[AKTIVITI],$J$8),NA())","v":{"$error":"#N/A"}}]
[{"$nulls":5},34,{"$f":"G42+1","v":"2012-06-03"},{"$f":"SUMIFS(data[BATU],data[TARIKH],G43,data[AKTIVITI],$H$8)","v":0},{"$f":"IFERROR(AVERAGEIFS(data[MPG],data[TARIKH],G43,data[AKTIVITI],$I$8),NA())","v":{"$error":"#N/A"}},{"$f":"IFERROR(AVERAGEIFS(data[¢/BATU],data[TARIKH],G43,data[AKTIVITI],$J$8),NA())","v":{"$error":"#N/A"}}]
[{"$nulls":5},35,"2012-06-04",{"$f":"SUMIFS(data[BATU],data[TARIKH],G44,data[AKTIVITI],$H$8)","v":0},{"$f":"IFERROR(AVERAGEIFS(data[MPG],data[TARIKH],G44,data[AKTIVITI],$I$8),NA())","v":{"$error":"#N/A"}},{"$f":"IFERROR(AVERAGEIFS(data[¢/BATU],data[TARIKH],G44,data[AKTIVITI],$J$8),NA())","v":{"$error":"#N/A"}}]
[{"$nulls":5},36,"2012-06-05",{"$f":"SUMIFS(data[BATU],data[TARIKH],G45,data[AKTIVITI],$H$8)","v":0},{"$f":"IFERROR(AVERAGEIFS(data[MPG],data[TARIKH],G45,data[AKTIVITI],$I$8),NA())","v":{"$error":"#N/A"}},{"$f":"IFERROR(AVERAGEIFS(data[¢/BATU],data[TARIKH],G45,data[AKTIVITI],$J$8),NA())","v":{"$error":"#N/A"}}]
[{"$nulls":5},37,"2012-06-06",{"$f":"SUMIFS(data[BATU],data[TARIKH],G46,data[AKTIVITI],$H$8)","v":0},{"$f":"IFERROR(AVERAGEIFS(data[MPG],data[TARIKH],G46,data[AKTIVITI],$I$8),NA())","v":{"$error":"#N/A"}},{"$f":"IFERROR(AVERAGEIFS(data[¢/BATU],data[TARIKH],G46,data[AKTIVITI],$J$8),NA())","v":{"$error":"#N/A"}}]
[{"$nulls":5},38,"2012-06-07",{"$f":"SUMIFS(data[BATU],data[TARIKH],G47,data[AKTIVITI],$H$8)","v":0},{"$f":"IFERROR(AVERAGEIFS(data[MPG],data[TARIKH],G47,data[AKTIVITI],$I$8),NA())","v":{"$error":"#N/A"}},{"$f":"IFERROR(AVERAGEIFS(data[¢/BATU],data[TARIKH],G47,data[AKTIVITI],$J$8),NA())","v":{"$error":"#N/A"}}]
[{"$nulls":5},39,"2012-06-08",{"$f":"SUMIFS(data[BATU],data[TARIKH],G48,data[AKTIVITI],$H$8)","v":0},{"$f":"IFERROR(AVERAGEIFS(data[MPG],data[TARIKH],G48,data[AKTIVITI],$I$8),NA())","v":{"$error":"#N/A"}},{"$f":"IFERROR(AVERAGEIFS(data[¢/BATU],data[TARIKH],G48,data[AKTIVITI],$J$8),NA())","v":{"$error":"#N/A"}}]
[{"$nulls":5},40,"2012-06-09",{"$f":"SUMIFS(data[BATU],data[TARIKH],G49,data[AKTIVITI],$H$8)","v":0},{"$f":"IFERROR(AVERAGEIFS(data[MPG],data[TARIKH],G49,data[AKTIVITI],$I$8),NA())","v":{"$error":"#N/A"}},{"$f":"IFERROR(AVERAGEIFS(data[¢/BATU],data[TARIKH],G49,data[AKTIVITI],$J$8),NA())","v":{"$error":"#N/A"}}]
[{"$nulls":5},41,"2012-06-10",{"$f":"SUMIFS(data[BATU],data[TARIKH],G50,data[AKTIVITI],$H$8)","v":0},{"$f":"IFERROR(AVERAGEIFS(data[MPG],data[TARIKH],G50,data[AKTIVITI],$I$8),NA())","v":{"$error":"#N/A"}},{"$f":"IFERROR(AVERAGEIFS(data[¢/BATU],data[TARIKH],G50,data[AKTIVITI],$J$8),NA())","v":{"$error":"#N/A"}}]
[{"$nulls":5},42,"2012-06-11",{"$f":"SUMIFS(data[BATU],data[TARIKH],G51,data[AKTIVITI],$H$8)","v":0},{"$f":"IFERROR(AVERAGEIFS(data[MPG],data[TARIKH],G51,data[AKTIVITI],$I$8),NA())","v":{"$error":"#N/A"}},{"$f":"IFERROR(AVERAGEIFS(data[¢/BATU],data[TARIKH],G51,data[AKTIVITI],$J$8),NA())","v":{"$error":"#N/A"}}]
[{"$nulls":5},43,"2012-06-12",{"$f":"SUMIFS(data[BATU],data[TARIKH],G52,data[AKTIVITI],$H$8)","v":0},{"$f":"IFERROR(AVERAGEIFS(data[MPG],data[TARIKH],G52,data[AKTIVITI],$I$8),NA())","v":{"$error":"#N/A"}},{"$f":"IFERROR(AVERAGEIFS(data[¢/BATU],data[TARIKH],G52,data[AKTIVITI],$J$8),NA())","v":{"$error":"#N/A"}}]
[{"$nulls":5},44,"2012-06-13",{"$f":"SUMIFS(data[BATU],data[TARIKH],G53,data[AKTIVITI],$H$8)","v":0},{"$f":"IFERROR(AVERAGEIFS(data[MPG],data[TARIKH],G53,data[AKTIVITI],$I$8),NA())","v":{"$error":"#N/A"}},{"$f":"IFERROR(AVERAGEIFS(data[¢/BATU],data[TARIKH],G53,data[AKTIVITI],$J$8),NA())","v":{"$error":"#N/A"}}]
[{"$nulls":5},45,"2012-06-14",{"$f":"SUMIFS(data[BATU],data[TARIKH],G54,data[AKTIVITI],$H$8)","v":0},{"$f":"IFERROR(AVERAGEIFS(data[MPG],data[TARIKH],G54,data[AKTIVITI],$I$8),NA())","v":{"$error":"#N/A"}},{"$f":"IFERROR(AVERAGEIFS(data[¢/BATU],data[TARIKH],G54,data[AKTIVITI],$J$8),NA())","v":{"$error":"#N/A"}}]
[{"$nulls":5},46,"2012-06-15",{"$f":"SUMIFS(data[BATU],data[TARIKH],G55,data[AKTIVITI],$H$8)","v":0},{"$f":"IFERROR(AVERAGEIFS(data[MPG],data[TARIKH],G55,data[AKTIVITI],$I$8),NA())","v":{"$error":"#N/A"}},{"$f":"IFERROR(AVERAGEIFS(data[¢/BATU],data[TARIKH],G55,data[AKTIVITI],$J$8),NA())","v":{"$error":"#N/A"}}]
[{"$nulls":5},47,"2012-06-16",{"$f":"SUMIFS(data[BATU],data[TARIKH],G56,data[AKTIVITI],$H$8)","v":0},{"$f":"IFERROR(AVERAGEIFS(data[MPG],data[TARIKH],G56,data[AKTIVITI],$I$8),NA())","v":{"$error":"#N/A"}},{"$f":"IFERROR(AVERAGEIFS(data[¢/BATU],data[TARIKH],G56,data[AKTIVITI],$J$8),NA())","v":{"$error":"#N/A"}}]
[{"$nulls":5},48,"2012-06-17",{"$f":"SUMIFS(data[BATU],data[TARIKH],G57,data[AKTIVITI],$H$8)","v":0},{"$f":"IFERROR(AVERAGEIFS(data[MPG],data[TARIKH],G57,data[AKTIVITI],$I$8),NA())","v":{"$error":"#N/A"}},{"$f":"IFERROR(AVERAGEIFS(data[¢/BATU],data[TARIKH],G57,data[AKTIVITI],$J$8),NA())","v":{"$error":"#N/A"}}]
[{"$nulls":5},49,"2012-06-18",{"$f":"SUMIFS(data[BATU],data[TARIKH],G58,data[AKTIVITI],$H$8)","v":0},{"$f":"IFERROR(AVERAGEIFS(data[MPG],data[TARIKH],G58,data[AKTIVITI],$I$8),NA())","v":{"$error":"#N/A"}},{"$f":"IFERROR(AVERAGEIFS(data[¢/BATU],data[TARIKH],G58,data[AKTIVITI],$J$8),NA())","v":{"$error":"#N/A"}}]
[{"$nulls":5},50,"2012-06-19",{"$f":"SUMIFS(data[BATU],data[TARIKH],G59,data[AKTIVITI],$H$8)","v":0},{"$f":"IFERROR(AVERAGEIFS(data[MPG],data[TARIKH],G59,data[AKTIVITI],$I$8),NA())","v":{"$error":"#N/A"}},{"$f":"IFERROR(AVERAGEIFS(data[¢/BATU],data[TARIKH],G59,data[AKTIVITI],$J$8),NA())","v":{"$error":"#N/A"}}]
[{"$nulls":5},51,"2012-06-20",{"$f":"SUMIFS(data[BATU],data[TARIKH],G60,data[AKTIVITI],$H$8)","v":0},{"$f":"IFERROR(AVERAGEIFS(data[MPG],data[TARIKH],G60,data[AKTIVITI],$I$8),NA())","v":{"$error":"#N/A"}},{"$f":"IFERROR(AVERAGEIFS(data[¢/BATU],data[TARIKH],G60,data[AKTIVITI],$J$8),NA())","v":{"$error":"#N/A"}}]
[{"$nulls":5},52,"2012-06-21",{"$f":"SUMIFS(data[BATU],data[TARIKH],G61,data[AKTIVITI],$H$8)","v":0},{"$f":"IFERROR(AVERAGEIFS(data[MPG],data[TARIKH],G61,data[AKTIVITI],$I$8),NA())","v":{"$error":"#N/A"}},{"$f":"IFERROR(AVERAGEIFS(data[¢/BATU],data[TARIKH],G61,data[AKTIVITI],$J$8),NA())","v":{"$error":"#N/A"}}]
[{"$nulls":5},53,"2012-06-22",{"$f":"SUMIFS(data[BATU],data[TARIKH],G62,data[AKTIVITI],$H$8)","v":0},{"$f":"IFERROR(AVERAGEIFS(data[MPG],data[TARIKH],G62,data[AKTIVITI],$I$8),NA())","v":{"$error":"#N/A"}},{"$f":"IFERROR(AVERAGEIFS(data[¢/BATU],data[TARIKH],G62,data[AKTIVITI],$J$8),NA())","v":{"$error":"#N/A"}}]
[{"$nulls":5},54,"2012-06-23",{"$f":"SUMIFS(data[BATU],data[TARIKH],G63,data[AKTIVITI],$H$8)","v":0},{"$f":"IFERROR(AVERAGEIFS(data[MPG],data[TARIKH],G63,data[AKTIVITI],$I$8),NA())","v":{"$error":"#N/A"}},{"$f":"IFERROR(AVERAGEIFS(data[¢/BATU],data[TARIKH],G63,data[AKTIVITI],$J$8),NA())","v":{"$error":"#N/A"}}]
[{"$nulls":5},55,"2012-06-24",{"$f":"SUMIFS(data[BATU],data[TARIKH],G64,data[AKTIVITI],$H$8)","v":0},{"$f":"IFERROR(AVERAGEIFS(data[MPG],data[TARIKH],G64,data[AKTIVITI],$I$8),NA())","v":{"$error":"#N/A"}},{"$f":"IFERROR(AVERAGEIFS(data[¢/BATU],data[TARIKH],G64,data[AKTIVITI],$J$8),NA())","v":{"$error":"#N/A"}}]
[{"$nulls":5},56,"2012-06-25",{"$f":"SUMIFS(data[BATU],data[TARIKH],G65,data[AKTIVITI],$H$8)","v":0},{"$f":"IFERROR(AVERAGEIFS(data[MPG],data[TARIKH],G65,data[AKTIVITI],$I$8),NA())","v":{"$error":"#N/A"}},{"$f":"IFERROR(AVERAGEIFS(data[¢/BATU],data[TARIKH],G65,data[AKTIVITI],$J$8),NA())","v":{"$error":"#N/A"}}]
[{"$nulls":5},57,"2012-06-26",{"$f":"SUMIFS(data[BATU],data[TARIKH],G66,data[AKTIVITI],$H$8)","v":0},{"$f":"IFERROR(AVERAGEIFS(data[MPG],data[TARIKH],G66,data[AKTIVITI],$I$8),NA())","v":{"$error":"#N/A"}},{"$f":"IFERROR(AVERAGEIFS(data[¢/BATU],data[TARIKH],G66,data[AKTIVITI],$J$8),NA())","v":{"$error":"#N/A"}}]
[{"$nulls":5},58,"2012-06-27",{"$f":"SUMIFS(data[BATU],data[TARIKH],G67,data[AKTIVITI],$H$8)","v":0},{"$f":"IFERROR(AVERAGEIFS(data[MPG],data[TARIKH],G67,data[AKTIVITI],$I$8),NA())","v":{"$error":"#N/A"}},{"$f":"IFERROR(AVERAGEIFS(data[¢/BATU],data[TARIKH],G67,data[AKTIVITI],$J$8),NA())","v":{"$error":"#N/A"}}]
[{"$nulls":5},59,"2012-06-28",{"$f":"SUMIFS(data[BATU],data[TARIKH],G68,data[AKTIVITI],$H$8)","v":0},{"$f":"IFERROR(AVERAGEIFS(data[MPG],data[TARIKH],G68,data[AKTIVITI],$I$8),NA())","v":{"$error":"#N/A"}},{"$f":"IFERROR(AVERAGEIFS(data[¢/BATU],data[TARIKH],G68,data[AKTIVITI],$J$8),NA())","v":{"$error":"#N/A"}}]
[{"$nulls":5},60,"2012-06-29",{"$f":"SUMIFS(data[BATU],data[TARIKH],G69,data[AKTIVITI],$H$8)","v":0},{"$f":"IFERROR(AVERAGEIFS(data[MPG],data[TARIKH],G69,data[AKTIVITI],$I$8),NA())","v":{"$error":"#N/A"}},{"$f":"IFERROR(AVERAGEIFS(data[¢/BATU],data[TARIKH],G69,data[AKTIVITI],$J$8),NA())","v":{"$error":"#N/A"}}]